bitfinex/quotes_ETHUSD_20250909
["timestamp","ask_amount","ask_price","bid_price","bid_amount"]
[1757426552477,0.4667,4325.8,4323.3,3.0]
[1757426552672,2.31221467,4324.9,4323.4,0.99973]
[1757426552871,0.74915,4325.8,4323.4,0.99973]
[1757426553400,5.31182788,4325.6,4323.2,4.824]
[1757426553600,0.30845,4325.8,4323.2,4.824]
[1757426553601,2.31232807,4324.7,4323.2,4.824]
[1757426553799,0.4407,4324.8,4323.2,4.824]
[1757426553977,0.792,4323.9,4323.2,4.824]
[1757426554186,0.792,4324.6,4323.2,4.824]
[1757426554504,3.0,4325.4,4323.2,4.824]
[1757426554505,5.3578,4325.6,4323.2,5.4878]
[1757426554709,2.31245535,4324.5,4323.2,5.4878]
[1757426554868,0.792,4324.7,4323.2,5.4878]
[1757426555200,2.7985,4324.9,4323.2,5.4878]
[1757426555508,3.1050479,4323.3,4323.2,0.002]
[1757426555677,0.792,4323.7,4323.2,0.002]
[1757426555878,0.792,4323.9,4323.2,0.002]
[1757426556078,2.3125165,4324.3,4323.2,0.002]
[1757426556303,0.792,4324.2,4323.2,0.002]
[1757426556477,0.792,4324.4,4323.2,0.002]
[1757426556679,0.792,4324.4,4323.1,0.04]
[1757426556680,0.792,4323.9,4322.8,1e-08]
[1757426556893,2.3129944,4323.4,4322.8,1e-08]
[1757426557068,3.792,4323.5,4321.1,0.04]
[1757426557069,2.31417198,4321.2,4321.1,0.04]
[1757426557411,2.3140125,4321.5,4321.1,0.04]
[1757426557709,0.792,4322.1,4321.1,0.04]
[1757426557908,7.0882557,4323.0,4321.1,1.815]
[1757426557909,3.10526193,4322.9,4321.1,1.815]
[1757426558210,0.792,4321.2,4321.1,0.04]
[1757426558383,6.606,4322.1,4321.1,0.04]
[1757426558589,3.10617198,4321.2,4321.1,0.04]
[1757426559216,5.90467198,4321.2,4321.1,0.04]
[1757426559594,5.90467198,4321.2,4320.1,0.04]
[1757426559595,0.792,4321.1,4320.1,0.04]
[1757426559777,0.792,4319.8,4319.1,0.04]
[1757426560114,0.792,4320.9,4317.1,0.04]
[1757426560115,0.792,4318.8,4317.1,0.04]
[1757426560332,0.792,4318.8,4315.3,0.25]
[1757426560333,0.792,4319.4,4315.3,0.25]
[1757426560334,3.0,4318.6,4315.3,0.25]
[1757426560498,0.792,4318.4,4316.1,0.4815]
[1757426560820,0.792,4318.2,4316.3,2.31677019]
[1757426561022,0.792,4318.2,4316.1,0.04]
[1757426561023,0.792,4318.2,4316.4,0.23567702]
[1757426561184,2.3578,4318.3,4316.5,0.02316691]
[1757426561384,0.792,4319.0,4316.6,2.2165]
[1757426561842,0.792,4318.8,4316.7,0.02316584]
[1757426561998,0.792,4318.8,4317.6,2.3160876]
[1757426562187,1.775,4320.4,4317.7,0.02316047]
[1757426562536,5.574,4321.8,4316.1,0.04]
[1757426562537,2.3578,4318.7,4316.1,0.04]
[1757426562728,2.3578,4318.7,4316.7,0.4415]
[1757426562890,2.3578,4318.7,4316.1,0.04]
[1757426562891,0.02316062,4318.6,4316.8,1.775]
[1757426563235,2.3578,4318.5,4316.1,0.04]
[1757426563429,2.31584811,4318.1,4316.2,1.775]
[1757426563649,2.3578,4318.5,4316.3,0.64616799]
[1757426563848,2.3578,4318.5,4316.4,7.531]
[1757426563849,0.02316062,4318.0,4316.4,7.531]
[1757426564143,2.7985,4318.5,4316.5,1.776]
[1757426564345,2.3578,4318.5,4316.6,0.02316638]
[1757426564486,2.3578,4318.5,4316.1,0.04]
[1757426564487,0.46386062,4318.4,4316.1,0.04]
[1757426564692,2.3578,4318.3,4316.2,1.776]
[1757426564990,0.46386062,4318.2,4316.2,1.776]
[1757426565226,2.31616208,4317.5,4316.2,1.776]
[1757426565427,2.3578,4318.1,4316.2,1.776]
[1757426565631,2.3578,4318.1,4316.3,0.4415]
[1757426565830,0.02316062,4318.0,4316.1,0.04]
[1757426566151,2.7985,4317.9,4316.2,1.776]
[1757426566440,3.0,4317.8,4316.2,1.776]
[1757426566600,0.02316062,4317.7,4316.2,1.776]
[1757426566800,0.4407,4318.7,4316.2,2.2175]
[1757426567014,0.025,4318.8,4316.5,2.31669176]
[1757426567242,0.025,4318.8,4316.7,3.0]
[1757426567413,0.022,4318.8,4316.9,3.0]
[1757426567741,2.3578,4320.4,4316.6,5.551]
[1757426567742,2.75328109,4324.2,4320.2,2.31469431]
[1757426567947,0.001,4325.4,4322.7,2.31336895]
[1757426568141,0.001,4325.4,4322.7,7.514]
[1757426568349,0.001,4325.4,4322.8,5.05443315]
[1757426568557,0.001,4325.4,4323.6,2.31287609]
[1757426568845,0.001,4325.4,4323.7,6.22912833]
[1757426568998,0.001,4325.4,4323.7,1.43]
[1757426569199,0.4817,4324.9,4323.7,1.776]
[1757426569402,2.7985,4324.3,4323.3,1.776]
[1757426569698,2.82166062,4323.7,4322.0,1.776]
[1757426570255,2.82166062,4323.7,4319.5,5.551]
[1757426570256,3.0,4323.6,4319.5,5.551]
[1757426570558,3.0,4323.4,4321.1,0.04]
[1757426570715,0.02316062,4323.3,4321.1,0.04]
[1757426570910,2.7985,4323.2,4321.1,0.04]
[1757426571110,3.02316062,4323.1,4321.1,0.04]
[1757426571343,2.31374697,4322.0,4321.1,0.04]
[1757426571544,0.02316062,4321.9,4321.1,0.04]
[1757426571712,2.8235,4321.8,4321.1,0.04]
[1757426572049,0.02316062,4321.7,4321.1,0.04]
[1757426572233,0.792,4321.5,4321.1,0.04]
[1757426572419,3.10612018,4321.3,4321.1,0.04]
[1757426572624,6.5905,4321.2,4321.1,0.04]
[1757426572828,3.1498,4321.2,4321.1,0.04]
[1757426573058,0.792,4321.1,4320.1,0.04]
[1757426573261,0.792,4319.2,4319.1,0.04]
[1757426573434,0.81516062,4319.2,4319.1,0.04]
[1757426573631,3.61366062,4319.2,4319.1,0.04]
[1757426573836,3.5905,4319.2,4319.1,0.04]
[1757426574031,3.17296062,4319.2,4319.1,0.04]
[1757426574233,5.92890418,4319.2,4319.1,0.04]
[1757426574434,5.90574356,4319.2,4319.1,0.04]
[1757426574820,3.10777972,4318.2,4318.1,0.04]
[1757426575024,3.13094034,4318.2,4318.1,0.04]
[1757426575225,2.3578,4321.0,4318.1,3.8473]
[1757426575426,0.025,4321.8,4318.5,3.0]
[1757426575633,0.02316062,4321.7,4318.9,3.0]
[1757426575940,0.025,4321.8,4319.1,3.0]
[1757426576480,0.02316062,4321.7,4319.2,0.4415]
[1757426576651,0.02316062,4321.7,4319.3,3.0]
[1757426576867,0.02316062,4321.7,4319.5,3.0]
[1757426577170,0.04,4320.9,4320.8,0.025]
[1757426578486,2.79503266,4320.9,4320.8,0.025]
[1757426578646,0.04,4320.9,4320.8,0.025]
[1757426580168,0.04,4320.9,4320.8,11.52588622]
[1757426580372,0.025,4321.8,4320.8,11.52588622]
[1757426580373,0.025,4321.8,4321.7,2.31390425]
[1757426580533,0.04,4323.9,4322.1,2.3136901]
[1757426580736,0.04,4323.9,4323.7,2.31283391]
[1757426580930,0.041,4324.9,4324.1,2.31260137]
[1757426581130,0.041,4324.9,4324.7,2.31229911]
[1757426581436,0.001,4326.3,4324.7,1.776]
[1757426581657,0.001,4326.3,4325.3,2.31197835]
[1757426581971,1e-08,4325.8,4325.3,5.747]
[1757426582131,1e-08,4325.8,4325.4,2.77319501]
[1757426582336,1e-08,4325.8,4325.5,1.776]
[1757426582559,1e-08,4325.8,4325.4,1.776]
[1757426583147,0.02316063,4325.8,4324.9,1.776]
[1757426583347,0.81516063,4325.8,4324.3,1.776]
[1757426583544,0.025,4323.8,4323.7,1.776]
[1757426583746,0.025,4323.8,4323.1,0.04]
[1757426584366,0.02316062,4323.7,4323.1,0.04]
[1757426584559,0.792,4323.5,4323.1,0.04]
[1757426584763,0.025,4323.8,4323.1,0.04]
[1757426585172,0.05,4323.8,4323.1,0.04]
[1757426585386,0.05,4323.8,4323.1,3.04]
[1757426585587,0.05,4323.8,4323.1,0.04]
[1757426585799,0.792,4323.7,4323.1,0.04]
[1757426585998,0.05,4323.8,4323.1,0.04]
[1757426586500,0.792,4323.7,4323.1,0.04]
[1757426586872,0.02316062,4323.6,4323.1,0.04]
[1757426587086,0.05,4323.8,4323.1,0.04]
[1757426587087,0.792,4323.7,4323.1,0.04]
[1757426587389,0.792,4323.4,4323.1,0.04]
[1757426587597,3.1051014,4323.2,4323.1,0.04]
[1757426587906,0.792,4322.6,4322.1,0.04]
[1757426588062,3.10563657,4322.2,4322.1,0.04]
[1757426588263,0.792,4322.2,4322.1,0.04]
[1757426588473,0.792,4323.0,4322.1,0.04]
[1757426588703,2.1912,4323.1,4322.1,0.04]
[1757426588704,0.02316062,4323.1,4322.1,0.04]
[1757426588904,0.02316062,4323.0,4322.1,0.04]
[1757426589403,0.792,4323.1,4322.1,0.04]
[1757426589568,2.6215,4323.2,4322.1,0.04]
[1757426589759,0.792,4322.9,4322.1,0.04]
[1757426589960,0.792,4322.4,4322.1,0.04]
[1757426590172,2.6215,4323.2,4322.1,0.04]
[1757426590173,0.792,4322.2,4322.1,0.04]
[1757426590399,3.12879719,4322.2,4322.1,0.04]
[1757426590703,5.75029719,4322.2,4322.1,1e-08]
[1757426591005,3.10617198,4321.2,4321.1,0.04]
[1757426591190,0.792,4321.2,4321.1,0.04]
[1757426591393,3.10617198,4321.2,4321.1,0.04]
[1757426591567,5.7508326,4321.2,4321.1,0.04]
[1757426591763,5.72767198,4321.2,4321.1,0.04]
[1757426592624,0.792,4321.0,4320.8,0.025]
[1757426592791,3.12949328,4320.9,4320.8,1e-08]
[1757426592991,5.72783266,4320.9,4320.8,1e-08]
[1757426593306,3.10633266,4320.9,4320.8,1e-08]
[1757426593470,0.4303,4321.6,4320.8,1e-08]
[1757426593471,0.792,4321.5,4320.8,1e-08]
[1757426593819,1.775,4322.0,4320.8,1e-08]
[1757426594018,0.45346062,4321.9,4320.8,1e-08]
[1757426594170,2.1912,4321.6,4320.8,1e-08]
[1757426594372,1.775,4322.0,4320.8,1e-08]
[1757426594568,0.4303,4321.9,4320.8,1e-08]
[1757426594769,1.775,4322.0,4320.8,1e-08]
[1757426594770,0.792,4321.8,4320.8,1e-08]
[1757426595073,3.10633266,4320.9,4320.8,1e-08]
[1757426595421,0.792,4320.9,4320.8,1e-08]
[1757426595569,0.792,4321.7,4320.8,1e-08]
[1757426595771,0.02316062,4321.6,4320.8,1e-08]
[1757426596066,0.45346062,4321.6,4320.8,1e-08]
[1757426596310,3.10633266,4320.9,4320.8,1e-08]
[1757426596606,4.90549328,4320.9,4320.8,1e-08]
[1757426596813,9.71183266,4320.9,4319.8,0.025]
[1757426596984,0.792,4320.3,4319.8,1e-08]
[1757426597187,3.10686839,4319.9,4319.8,1e-08]
[1757426597396,10.52002901,4319.9,4319.8,1e-08]
[1757426597684,13.11836839,4319.9,4319.8,1e-08]
[1757426597888,16.11836839,4319.9,4319.8,1e-08]
[1757426598830,3.10740438,4318.9,4318.8,1e-08]
[1757426598977,0.792,4318.7,4315.0,0.0075]
[1757426599192,3.792,4318.0,4315.3,0.20043448]
[1757426599393,2.31728229,4315.4,4315.3,0.20043448]
[1757426599594,0.81516062,4315.4,4315.3,0.20043448]
[1757426599892,0.81516062,4316.3,4315.3,0.20043448]
[1757426600372,0.792,4316.4,4315.4,0.4613]
[1757426600552,0.792,4317.3,4315.5,3.0]
[1757426600847,0.4303,4318.2,4315.6,3.48447174]
[1757426601129,2.31579222,4318.2,4315.7,0.48447121]
[1757426601330,2.1912,4318.6,4315.5,4.4885]
[1757426601331,0.02316062,4318.1,4316.1,0.002]
[1757426601540,0.02316062,4318.1,4316.2,2.2373]
[1757426601742,0.04,4317.9,4316.3,30.48446799]
[1757426601907,0.04,4317.9,4316.3,0.4613]
[1757426602247,0.04,4317.9,4316.6,5.31663809]
[1757426602396,0.04,4317.9,4316.4,1.4885]
[1757426602598,0.04,4317.9,4317.0,2.31637073]
[1757426602916,0.04,4317.9,4317.1,1.776]
[1757426603115,0.04,4317.9,4317.2,31.97296316]
[1757426603302,0.04,4318.9,4317.2,31.97296316]
[1757426603303,0.04,4318.9,4318.8,2.31545799]
[1757426603647,0.04,4318.9,4317.7,1.776]
[1757426603795,0.04,4318.9,4317.9,3.0]
[1757426603992,0.04,4318.9,4318.8,0.4613]
[1757426604217,0.04,4318.9,4318.0,40.02315886]
[1757426604218,0.04,4318.9,4318.1,1.776]
[1757426605093,0.04,4318.9,4318.2,3.0]
[1757426605294,0.04,4318.9,4318.8,2.31545799]
[1757426605504,0.04,4318.9,4318.6,3.0]
[1757426605827,0.04,4318.9,4318.5,2.31560119]
[1757426606033,0.04,4318.9,4318.3,0.4613]
[1757426606243,0.04,4318.9,4318.6,2.31556522]
[1757426606730,0.025,4319.8,4318.7,1.9098]
[1757426607023,0.025,4319.8,4319.7,2.31497557]
[1757426607198,0.025,4319.8,4319.7,4.09197557]
[1757426607359,0.025,4319.8,4319.7,4.55327557]
[1757426607561,0.025,4319.8,4319.6,3.0]
[1757426607862,0.025,4319.8,4319.7,2.31497557]
[1757426608597,0.025,4319.8,4319.1,1.777]
[1757426608765,0.025,4319.8,4319.1,4.777]
[1757426608963,0.025,4319.8,4319.1,1.777]
[1757426609199,0.81516062,4319.7,4318.0,1.776]
[1757426609413,0.792,4319.2,4318.0,1.776]
[1757426609712,0.792,4317.8,4317.1,0.04]
[1757426610011,3.9672,4319.2,4317.1,0.04]
[1757426610312,0.792,4318.2,4317.1,0.04]
[1757426610536,0.792,4319.0,4317.1,0.04]
[1757426610820,2.1912,4319.1,4317.1,0.04]
[1757426611022,0.1152,4317.5,4317.2,0.02316316]
[1757426611334,0.817,4319.8,4317.4,3.0]
[1757426611534,0.1152,4318.1,4317.5,1.79916155]
[1757426611828,0.792,4319.2,4317.5,1.79916155]
[1757426611829,3.10745799,4318.8,4317.5,1.776]
[1757426612030,0.81516062,4318.8,4317.5,1.776]
[1757426612190,0.792,4318.8,4317.6,2.31609788]
[1757426612388,0.4653,4319.7,4317.6,0.02316101]
[1757426612611,0.792,4319.6,4317.9,2.31591516]
[1757426612783,0.1152,4318.5,4318.1,2.31582885]
[1757426612986,0.1152,4318.5,4317.9,3.0]
[1757426613224,0.04816062,4319.8,4317.9,5.547]
[1757426613225,0.025,4319.8,4317.9,5.547]
[1757426613409,0.1152,4318.4,4318.3,2.31572609]
[1757426613586,0.1152,4318.4,4318.3,1.777]
[1757426613787,0.1152,4318.4,4318.3,7.09272609]
[1757426614019,0.1152,4318.4,4318.3,4.777]
[1757426614397,0.1152,4318.4,4318.3,7.09272609]
[1757426614597,2.31498142,4319.7,4318.3,4.777]
[1757426614792,0.1152,4318.4,4318.3,7.09272609]
[1757426614987,0.1152,4318.4,4318.3,7.56512609]
[1757426615194,0.025,4319.8,4318.3,7.56512609]
[1757426615195,0.1152,4318.9,4318.4,3.0]
[1757426615502,0.1144,4318.9,4318.8,2.31545799]
[1757426615689,0.1152,4319.3,4319.2,2.31524356]
[1757426615887,0.1152,4319.3,4319.2,4.09224356]
[1757426616388,0.025,4319.8,4319.7,2.31497557]
[1757426616588,0.025,4319.8,4319.5,2.31506791]
[1757426616796,0.025,4319.8,4319.2,1.777]
[1757426617096,0.025,4319.8,4318.0,0.4724]
[1757426617097,0.025,4319.8,4318.6,3.0]
[1757426617297,2.31509234,4319.5,4318.6,3.0]
[1757426617515,0.817,4319.8,4318.6,3.0]
[1757426617709,0.025,4319.8,4318.6,3.0]
[1757426618023,2.31513457,4319.5,4318.5,1.777]
[1757426618224,0.792,4319.6,4318.5,1.777]
[1757426618463,0.792,4319.4,4318.5,1.777]
[1757426618587,2.3155028,4318.8,4317.8,1.777]
[1757426618788,0.792,4318.6,4317.8,1.777]
[1757426619028,2.3156242,4318.5,4317.8,1.777]
[1757426619212,0.792,4318.8,4317.8,1.777]
[1757426619415,2.31568764,4318.4,4317.8,1.777]
[1757426619619,2.31575276,4318.3,4317.8,1.777]
[1757426619931,3.10756522,4318.6,4318.5,0.002]
[1757426620146,3.10756522,4318.6,4317.1,0.04]
[1757426620147,3.792,4318.5,4317.1,0.04]
[1757426620439,0.792,4318.2,4317.6,0.002]
[1757426620939,2.1178,4318.5,4317.6,0.002]
[1757426620940,0.792,4318.4,4317.6,0.002]
[1757426621145,0.792,4318.1,4317.6,0.002]
[1757426621293,2.1178,4319.4,4317.6,0.002]
[1757426621660,2.31534991,4319.1,4317.6,2.31805974]
[1757426621832,2.1178,4319.4,4317.7,5.471]
[1757426621994,0.025,4319.8,4317.8,4.777]
[1757426622192,2.31499402,4319.7,4318.0,2.31587232]
[1757426622392,2.1178,4319.6,4317.8,4.777]
[1757426622592,2.14096062,4319.6,4317.8,4.09294379]
[1757426622946,2.1178,4319.6,4317.8,1.777]
[1757426623101,0.025,4319.8,4317.8,1.777]
[1757426623301,0.025,4319.8,4319.0,2.31534006]
[1757426623610,0.015,4319.8,4318.7,7.233]
[1757426624010,2.31502916,4319.6,4318.7,1.777]
[1757426624313,0.792,4319.6,4318.8,0.02315457]
[1757426624511,2.31520389,4319.3,4318.7,1.777]
[1757426624833,0.792,4319.3,4317.8,1.777]
[1757426625144,3.1076792,4318.4,4317.8,1.777]
[1757426625342,0.792,4318.8,4317.8,1.777]
[1757426625343,2.31574511,4318.3,4317.8,1.777]
[1757426625593,0.792,4318.1,4317.6,0.002]
[1757426625800,0.792,4317.8,4317.6,0.002]
[1757426625938,2.31604789,4317.7,4317.6,0.002]
[1757426626145,3.3751,4317.7,4317.6,0.002]
[1757426626494,5.69114789,4317.7,4317.6,0.002]
[1757426626654,3.3751,4317.7,4316.1,0.042]
[1757426626855,0.792,4317.5,4315.3,0.20043448]
[1757426627054,2.5831,4317.7,4315.3,0.20043448]
[1757426627055,3.792,4317.1,4315.3,0.20043448]
[1757426627401,0.792,4316.9,4315.3,0.20043448]
[1757426627879,4.3601,4317.0,4315.4,0.02317282]
[1757426628107,3.0,4316.9,4315.3,0.20043448]
[1757426628401,0.02316062,4316.8,4315.3,0.20043448]
[1757426628543,2.31727537,4315.5,4315.3,0.20043448]
[1757426628749,0.792,4315.8,4315.3,0.20043448]
[1757426629086,4.09396615,4316.0,4315.3,0.20043448]
[1757426629340,0.81516062,4315.9,4315.3,0.20043448]
[1757426629541,2.1178,4316.0,4315.3,0.20043448]
[1757426629748,2.31673852,4316.5,4315.3,0.20043448]
[1757426630046,0.02316062,4316.5,4315.3,0.20043448]
[1757426630329,2.1178,4317.7,4315.3,0.20043448]
[1757426630530,2.1178,4317.7,4315.4,0.4724]
[1757426630531,0.02316062,4317.6,4315.4,0.4724]
[1757426630734,2.1178,4317.7,4315.4,0.4724]
[1757426631049,0.04,4317.9,4315.5,30.0]
[1757426631201,2.316335,4317.2,4315.7,2.31709919]
[1757426631405,2.31654529,4316.8,4315.8,1.777]
[1757426631652,2.3164771,4316.9,4315.8,1.777]
[1757426631859,0.02316062,4316.8,4315.3,0.20043448]
[1757426632000,0.792,4316.6,4315.3,0.20043448]
[1757426632205,0.792,4316.3,4315.3,0.20043448]
[1757426632402,1.777,4316.2,4315.3,0.20043448]
[1757426632601,1.777,4316.2,4315.0,0.0075]
[1757426632602,0.792,4315.0,4313.8,0.025]
[1757426632825,2.31760452,4314.8,4313.8,0.028]
[1757426633036,2.31781939,4314.4,4313.8,0.028]
[1757426633235,1.777,4314.7,4313.8,0.028]
[1757426633436,3.10981939,4314.4,4313.8,0.028]
[1757426633638,5.69291939,4314.4,4313.8,0.028]
[1757426634157,3.11024925,4313.6,4313.5,0.01]
[1757426634313,0.792,4313.4,4311.1,0.04]
[1757426634514,3.11116324,4311.9,4311.1,0.04]
[1757426634870,3.39826062,4311.9,4311.1,0.04]
[1757426635028,3.39826062,4311.9,4308.1,9.02720657]
[1757426635029,0.792,4310.8,4308.8,0.025]
[1757426635209,0.81516062,4310.7,4308.8,0.025]
[1757426635420,1.778,4310.8,4308.8,0.025]
[1757426635421,2.32002641,4310.3,4308.8,0.025]
[1757426635764,5.556,4312.3,4308.1,0.04]
[1757426635765,0.792,4310.1,4308.1,0.04]
[1757426635931,2.5831,4310.6,4308.1,0.04]
[1757426635932,1.778,4310.0,4308.1,0.04]
[1757426636126,2.1178,4311.4,4308.2,31.72291155]
[1757426636379,2.61209357,4311.3,4308.1,0.04]
[1757426636696,6.417,4311.2,4308.2,0.01164055]
[1757426636870,3.0,4311.1,4308.3,0.01164028]
[1757426637024,0.02899559,4311.0,4308.1,0.04]
[1757426637227,3.0,4310.8,4308.2,0.01164216]
[1757426637427,0.17136023,4312.9,4308.1,0.04]
[1757426637428,2.61209761,4310.7,4308.1,0.04]
[1757426637661,0.792,4310.6,4308.1,0.04]
[1757426637861,0.82099828,4310.6,4309.0,2.32067332]
[1757426638073,2.1178,4311.6,4309.2,2.32060786]
[1757426638276,0.04,4310.9,4309.3,1.778]
[1757426638476,0.792,4310.8,4309.3,1.778]
[1757426638661,0.792,4310.6,4309.3,1.778]
[1757426638865,0.792,4310.4,4309.3,1.778]
[1757426639063,0.792,4309.3,4308.1,0.04]
[1757426639376,0.792,4309.1,4308.1,0.04]
[1757426639577,0.792,4308.9,4308.1,0.04]
[1757426639787,2.5831,4309.4,4308.1,0.04]
[1757426639944,0.4653,4309.0,4308.1,0.04]
[1757426640145,2.32111697,4308.3,4308.1,0.04]
[1757426640349,2.61211443,4308.2,4307.1,0.04]
[1757426640570,3.792,4308.1,4305.2,1.87467961]
[1757426640912,14.235,4309.2,4305.2,1.87467961]
[1757426640913,0.792,4306.4,4305.2,1.87467961]
[1757426641055,2.32269,4305.4,4305.2,1.87467961]
[1757426641259,0.02903263,4305.5,4305.2,1.87467961]
[1757426641466,0.02902993,4305.9,4305.2,1.87467961]
[1757426641664,0.02822993,4305.9,4305.2,1.87467961]
[1757426641896,1.779,4306.1,4305.2,1.87467961]
[1757426642193,0.4703,4306.7,4305.2,1.82467961]
[1757426642194,0.02902926,4306.0,4305.2,1.82467961]
[1757426642365,0.4703,4307.9,4305.2,1.82467961]
[1757426642699,2.2222,4308.1,4305.3,30.01248361]
[1757426642897,2.2222,4309.2,4305.6,3.0]
[1757426643201,0.04,4307.9,4306.3,2.32217913]
[1757426643355,0.04,4308.9,4307.9,30.0]
[1757426643555,0.04,4309.9,4309.7,2.32034712]
[1757426643802,0.04,4309.9,4309.7,1.78]
[1757426643955,0.025,4310.8,4309.8,3.0]
[1757426644151,0.05,4310.8,4309.9,40.0]
[1757426644355,0.05,4310.8,4309.7,2.6973]
[1757426644565,0.05,4310.8,4310.0,0.01242876]
[1757426644768,0.05,4310.8,4310.0,3.0]
[1757426644967,0.05,4310.8,4309.8,3.0]
[1757426645197,0.05,4310.8,4309.7,1.78]
[1757426645405,0.05,4310.8,4309.1,2.317]
[1757426645570,0.02899761,4310.7,4308.9,1.78]
[1757426645769,0.05,4310.8,4309.0,3.0]
[1757426646082,0.82099761,4310.7,4308.9,1.78]
[1757426646286,0.792,4310.7,4310.2,2.32007061]
[1757426646487,2.72149828,4310.6,4308.9,1.78]
[1757426646709,2.72149828,4310.6,4308.5,1.78]
[1757426646915,0.025,4308.8,4308.6,30.23094126]
[1757426647056,0.05,4310.8,4308.9,3.0]
[1757426647257,0.12534203,4313.5,4310.9,3.0]
[1757426647562,0.04,4313.9,4312.7,2.31873304]
[1757426647869,0.04,4313.9,4312.7,4.79239562]
[1757426648183,0.04,4313.9,4311.0,5.563]
[1757426648184,0.04,4313.9,4311.9,1.78]
[1757426648382,0.025,4312.8,4312.0,1.78]
[1757426648696,0.02898416,4312.7,4310.9,1.78]
[1757426648904,0.025,4312.8,4310.9,1.78]
[1757426648905,0.025,4312.8,4311.1,3.0]
[1757426649057,0.025,4312.8,4311.2,2.32840838]
[1757426649257,0.025,4312.8,4311.2,2.31953004]
[1757426649602,0.025,4312.8,4310.9,1.78]
[1757426649603,0.792,4312.6,4310.9,1.78]
[1757426649807,0.025,4312.8,4311.2,2.3195398]
[1757426650100,0.817,4312.8,4311.3,5.847]
[1757426650260,0.817,4312.8,4311.5,3.0]
[1757426650462,0.817,4312.8,4311.3,1.78]
[1757426650660,0.817,4312.8,4311.4,1.78]
[1757426650904,0.49928416,4312.7,4311.4,1.78]
[1757426651199,0.49928416,4312.7,4310.9,5.846]
[1757426651200,0.792,4312.6,4311.0,3.0]
[1757426651402,0.025,4312.8,4311.0,3.0]
[1757426651586,0.792,4312.3,4310.8,1.805]
[1757426651824,2.6925,4312.7,4310.8,0.025]
[1757426652097,0.025,4312.8,4310.8,0.025]
[1757426652098,0.025,4312.8,4311.0,3.0]
[1757426652315,0.817,4312.8,4311.1,40.0]
[1757426652460,0.817,4312.8,4310.8,0.025]
[1757426652665,0.792,4312.5,4310.9,0.01241083]
[1757426652889,0.025,4312.8,4311.1,3.0]
[1757426653104,0.792,4312.6,4310.8,3.025]
[1757426653262,0.792,4311.9,4310.8,0.025]
[1757426653463,0.792,4312.3,4310.8,0.025]
[1757426653765,0.792,4311.3,4310.8,0.025]
[1757426653991,0.792,4311.7,4310.8,0.025]
[1757426653992,0.792,4311.6,4310.8,0.025]
[1757426654224,0.792,4311.8,4310.8,0.025]
[1757426654559,2.6925,4312.4,4310.8,0.025]
[1757426654560,0.792,4312.3,4310.8,0.025]
[1757426654891,0.792,4311.7,4310.8,0.025]
[1757426655089,0.792,4311.1,4310.8,0.025]
[1757426655404,0.792,4311.6,4310.8,0.025]
[1757426655629,0.792,4310.9,4310.8,0.025]
[1757426655835,0.04,4313.9,4310.9,30.8961]
[1757426656036,0.025,4315.8,4313.0,3.0]
[1757426656322,2.6925,4315.7,4313.2,3.0]
[1757426656484,0.01657994,4315.6,4313.3,1.78]
[1757426656685,0.4953,4314.8,4313.5,3.0]
[1757426656885,0.4953,4314.8,4313.3,1.78]
[1757426657197,0.1152,4313.3,4312.2,1.779]
[1757426657414,0.792,4313.2,4312.4,2.31889104]
[1757426657719,0.1152,4312.4,4312.2,1.779]
[1757426657928,0.9072,4312.4,4312.3,2.31894812]
[1757426658110,0.1152,4312.4,4312.2,1.779]
[1757426658286,0.1152,4312.6,4312.3,2.31894812]
[1757426658486,0.792,4312.5,4312.1,0.04]
[1757426658795,0.792,4312.9,4312.2,0.02319001]
[1757426658997,0.792,4312.6,4312.1,0.04]
[1757426659208,0.792,4312.2,4312.1,0.04]
[1757426659405,5.8035019,4312.2,4312.1,0.04]
[1757426659612,3.4845,4312.2,4312.1,0.04]
[1757426659823,0.025,4312.8,4312.1,0.04]
[1757426659990,0.817,4312.8,4312.1,0.04]
[1757426660197,0.025,4312.8,4312.2,0.02319001]
[1757426660402,0.025,4312.8,4312.3,2.31894812]
[1757426660588,0.025,4312.8,4312.1,0.04]
[1757426661097,0.792,4312.2,4312.1,0.04]
[1757426661302,3.0142,4312.2,4312.1,0.04]
[1757426661525,0.025,4312.8,4312.1,0.04]
[1757426662030,0.817,4312.8,4312.1,0.04]
[1757426662201,0.025,4312.8,4312.1,0.04]
[1757426662402,0.817,4312.8,4312.1,0.04]
[1757426662713,2.31873304,4312.7,4312.1,0.04]
[1757426662883,0.817,4312.8,4312.1,0.04]
[1757426663110,0.025,4312.8,4312.1,0.04]
[1757426663544,0.025,4312.8,4312.2,1.80219001]
[1757426663858,0.025,4312.8,4312.7,2.31873304]